[Event "*** Titled Tuesday Blitz"]
[Site "Chess.com"]
[Date "2021.03.09"]
[Round "4"]
[White "Aygehovit1992"]
[Black "Kislov_Oleg"]
[Result "1-0"]
[WhiteElo "2640"]
[BlackElo "2484"]
[TimeControl "180+1"]
[EndTime "10:40:23 PST"]
[Termination "Aygehovit1992 won by resignation"]

1. d4 {[%clk 0:03:00.9]} 1... Nf6 {[%clk 0:02:58.1]} 2. Nf3 {[%clk 0:03:00.5]}
2... d5 {[%clk 0:02:57.7]} 3. Bg5 {[%clk 0:03:00.3]} 3... e6 {[%clk 0:02:57.5]}
4. e3 {[%clk 0:03:00.3]} 4... c5 {[%clk 0:02:57.9]} 5. Nbd2 {[%clk 0:02:59.4]}
5... Nc6 {[%clk 0:02:57.8]} 6. c3 {[%clk 0:02:59.1]} 6... Bd6 {[%clk 0:02:57]}
7. Bd3 {[%clk 0:02:56.9]} 7... Qc7 {[%clk 0:02:55.1]} 8. Bxf6 {[%clk 0:02:51.8]}
8... gxf6 {[%clk 0:02:54.5]} 9. dxc5 {[%clk 0:02:47.6]} 9... Bxc5 {[%clk
0:02:54.1]} 10. e4 {[%clk 0:02:48.3]} 10... dxe4 {[%clk 0:02:42.1]} 11. Nxe4
{[%clk 0:02:49.2]} 11... Be7 {[%clk 0:02:42.2]} 12. Qd2 {[%clk 0:02:43.9]} 12...
Bd7 {[%clk 0:02:41.6]} 13. Qh6 {[%clk 0:02:40.2]} 13... O-O-O {[%clk 0:02:38.7]}
14. O-O {[%clk 0:02:16.7]} 14... Ne5 {[%clk 0:02:27.1]} 15. Be2 {[%clk
0:02:15.4]} 15... Bc6 {[%clk 0:02:20.9]} 16. Qe3 {[%clk 0:01:58.1]} 16... Kb8
{[%clk 0:01:48.9]} 17. Nd4 {[%clk 0:01:56.3]} 17... f5 {[%clk 0:01:27.5]} 18.
Nxc6+ {[%clk 0:01:53.4]} 18... Qxc6 {[%clk 0:01:14.4]} 19. Ng5 {[%clk
0:01:50.7]} 19... Bxg5 {[%clk 0:01:00.9]} 20. Qxe5+ {[%clk 0:01:47.4]} 20... Ka8
{[%clk 0:01:00.8]} 21. Rad1 {[%clk 0:01:45]} 21... Rhg8 {[%clk 0:00:54.4]} 22.
g3 {[%clk 0:00:51.7]} 22... Be7 {[%clk 0:00:45.5]} 23. Bh5 {[%clk 0:00:47.2]}
23... Bf6 {[%clk 0:00:37.4]} 24. Qxf6 {[%clk 0:00:43.9]} 1-0

[Event "*** Titled Tuesday Blitz"]
[Site "Chess.com"]
[Date "2021.03.09"]
[Round "4"]
[White "night_player"]
[Black "shaheus"]
[Result "1/2-1/2"]
[WhiteElo "2169"]
[BlackElo "2402"]
[TimeControl "180+1"]
[EndTime "10:40:26 PST"]
[Termination "Game drawn by agreement"]

1. e4 {[%clk 0:03:00.9]} 1... c5 {[%clk 0:02:59.4]} 2. c3 {[%clk 0:03:00.4]}
2... e5 {[%clk 0:02:58.7]} 3. Nf3 {[%clk 0:02:59.3]} 3... Nc6 {[%clk 0:02:58.3]}
4. d4 {[%clk 0:02:59.6]} 4... cxd4 {[%clk 0:02:58.4]} 5. cxd4 {[%clk 0:03:00.5]}
5... exd4 {[%clk 0:02:58.9]} 6. Nxd4 {[%clk 0:03:01.4]} 6... Nf6 {[%clk
0:02:58.5]} 7. Nc3 {[%clk 0:03:01.7]} 7... Bb4 {[%clk 0:02:58.4]} 8. f3 {[%clk
0:03:00]} 8... d5 {[%clk 0:02:56.1]} 9. Bb5 {[%clk 0:02:51.9]} 9... Bd7 {[%clk
0:02:37.4]} 10. Bxc6 {[%clk 0:02:29.5]} 10... Bxc6 {[%clk 0:02:32.7]} 11. Nxc6
{[%clk 0:02:28.3]} 11... bxc6 {[%clk 0:02:32.4]} 12. exd5 {[%clk 0:02:05.9]}
12... O-O {[%clk 0:02:26.1]} 13. O-O {[%clk 0:02:04.3]} 13... cxd5 {[%clk
0:02:09.4]} 14. Bg5 {[%clk 0:01:57.3]} 14... Bxc3 {[%clk 0:01:54.5]} 15. bxc3
{[%clk 0:01:55.8]} 15... h6 {[%clk 0:01:54.4]} 16. Bxf6 {[%clk 0:01:52.5]} 16...
Qxf6 {[%clk 0:01:54.3]} 17. Qxd5 {[%clk 0:01:52.7]} 17... Qxc3 {[%clk
0:01:53.7]} 18. Rac1 {[%clk 0:01:48]} 18... Qe3+ {[%clk 0:01:53.1]} 19. Kh1
{[%clk 0:01:48.5]} 19... Rad8 {[%clk 0:01:47.6]} 20. Qa5 {[%clk 0:01:14]} 20...
Rd2 {[%clk 0:01:42.5]} 21. Rce1 {[%clk 0:01:03.9]} 21... Qd3 {[%clk 0:01:20.3]}
22. Qxa7 {[%clk 0:00:59.6]} 22... Qc2 {[%clk 0:01:11.5]} 23. Rg1 {[%clk
0:00:56.3]} 23... Qxa2 {[%clk 0:01:05.4]} 24. Qxa2 {[%clk 0:00:54.6]} 24... Rxa2
{[%clk 0:01:05.2]} 25. g3 {[%clk 0:00:51.1]} 25... Rd8 {[%clk 0:01:01.2]} 26.
Rg2 {[%clk 0:00:51.1]} 26... Rdd2 {[%clk 0:00:59.9]} 27. Rxd2 {[%clk 0:00:51.2]}
27... Rxd2 {[%clk 0:00:59.1]} 28. Kg1 {[%clk 0:00:49]} 28... Kh7 {[%clk
0:00:57.6]} 29. Rf1 {[%clk 0:00:49.3]} 29... f5 {[%clk 0:00:56.1]} 30. Rf2
{[%clk 0:00:50.2]} 30... Rd3 {[%clk 0:00:54.6]} 31. Kg2 {[%clk 0:00:50.1]} 31...
Kg6 {[%clk 0:00:52.8]} 32. Rb2 {[%clk 0:00:46.2]} 1/2-1/2

[Event "*** Titled Tuesday Blitz"]
[Site "Chess.com"]
[Date "2021.03.09"]
[Round "4"]
[White "Ghost_Pepper"]
[Black "NateSolon"]
[Result "0-1"]
[WhiteElo "2390"]
[BlackElo "2604"]
[TimeControl "180+1"]
[EndTime "10:40:32 PST"]
[Termination "NateSolon won by checkmate"]

1. e4 {[%clk 0:03:00.9]} 1... c5 {[%clk 0:02:59.7]} 2. Nf3 {[%clk 0:03:00.5]}
2... d6 {[%clk 0:02:59.9]} 3. d4 {[%clk 0:03:01]} 3... cxd4 {[%clk 0:03:00.8]}
4. Nxd4 {[%clk 0:03:01.4]} 4... Nf6 {[%clk 0:03:01]} 5. Nc3 {[%clk 0:03:01.9]}
5... a6 {[%clk 0:03:01]} 6. h3 {[%clk 0:03:02.2]} 6... e5 {[%clk 0:03:00.9]} 7.
Nde2 {[%clk 0:03:02.8]} 7... h5 {[%clk 0:03:00.4]} 8. Bg5 {[%clk 0:02:58.6]}
8... Be6 {[%clk 0:03:00.2]} 9. Qd2 {[%clk 0:02:49.3]} 9... Nbd7 {[%clk
0:02:58.6]} 10. a4 {[%clk 0:02:25.1]} 10... Rc8 {[%clk 0:02:42.4]} 11. g3 {[%clk
0:02:14]} 11... Be7 {[%clk 0:02:29.5]} 12. Bg2 {[%clk 0:02:13.9]} 12... Qc7
{[%clk 0:02:23.5]} 13. O-O {[%clk 0:02:11.2]} 13... O-O {[%clk 0:02:21.3]} 14.
Kh2 {[%clk 0:02:06.6]} 14... b5 {[%clk 0:02:12.4]} 15. axb5 {[%clk 0:01:46.6]}
15... axb5 {[%clk 0:02:13.3]} 16. b4 {[%clk 0:01:34.1]} 16... Nb6 {[%clk
0:02:08.5]} 17. Rfc1 {[%clk 0:00:52.5]} 17... Nc4 {[%clk 0:02:07.5]} 18. Qd3
{[%clk 0:00:50.8]} 18... Ng4+ {[%clk 0:01:57.2]} 19. hxg4 {[%clk 0:00:49]} 19...
Bxg5 {[%clk 0:01:58.1]} 20. Rh1 {[%clk 0:00:39.6]} 20... hxg4 {[%clk 0:01:52.7]}
21. Nd5 {[%clk 0:00:34.4]} 21... Bxd5 {[%clk 0:01:44.8]} 22. exd5 {[%clk
0:00:35.3]} 22... g6 {[%clk 0:01:31.2]} 23. c3 {[%clk 0:00:31.8]} 23... Qb6
{[%clk 0:01:27]} 24. Kg1 {[%clk 0:00:31.2]} 24... Kg7 {[%clk 0:01:26]} 25. Kf1
{[%clk 0:00:18.7]} 25... Rh8 {[%clk 0:01:23.7]} 26. Rxh8 {[%clk 0:00:17.5]}
26... Rxh8 {[%clk 0:01:24.6]} 27. Nc1 {[%clk 0:00:14.8]} 27... Nd2+ {[%clk
0:01:11.5]} 28. Ke2 {[%clk 0:00:14.2]} 28... Rh2 {[%clk 0:01:09.8]} 29. Be4
{[%clk 0:00:10.5]} 29... Qxf2+ {[%clk 0:01:04.1]} 30. Kd1 {[%clk 0:00:10.5]}
30... Nxe4 {[%clk 0:01:03.8]} 31. Qxe4 {[%clk 0:00:10.3]} 31... Qd2# {[%clk
0:01:03.8]} 0-1

[Event "*** Titled Tuesday Blitz"]
[Site "Chess.com"]
[Date "2021.03.09"]
[Round "4"]
[White "buhomurciano"]
[Black "AurumO"]
[Result "1-0"]
[WhiteElo "2258"]
[BlackElo "1970"]
[TimeControl "180+1"]
[EndTime "10:40:33 PST"]
[Termination "buhomurciano won on time"]

1. e4 {[%clk 0:03:00.9]} 1... c5 {[%clk 0:02:57]} 2. Nc3 {[%clk 0:02:58.3]} 2...
Nc6 {[%clk 0:02:56.7]} 3. Nge2 {[%clk 0:02:57.8]} 3... g6 {[%clk 0:02:55.9]} 4.
d4 {[%clk 0:02:57.3]} 4... cxd4 {[%clk 0:02:55.8]} 5. Nxd4 {[%clk 0:02:58.2]}
5... Bg7 {[%clk 0:02:55.8]} 6. Be3 {[%clk 0:02:58.6]} 6... Nf6 {[%clk
0:02:55.4]} 7. f3 {[%clk 0:02:56.4]} 7... O-O {[%clk 0:02:53.5]} 8. g4 {[%clk
0:02:56.4]} 8... Qb6 {[%clk 0:02:42.9]} 9. Rb1 {[%clk 0:02:48]} 9... Nxe4 {[%clk
0:02:11.6]} 10. fxe4 {[%clk 0:02:46.8]} 10... Bxd4 {[%clk 0:02:09.4]} 11. Nd5
{[%clk 0:02:46.4]} 11... Qa5+ {[%clk 0:01:58.1]} 12. b4 {[%clk 0:02:44.7]} 12...
Qxa2 {[%clk 0:00:32.3]} 13. Bxd4 {[%clk 0:02:40.9]} 13... Nxd4 {[%clk
0:00:30.8]} 14. Nxe7+ {[%clk 0:02:39.4]} 14... Kg7 {[%clk 0:00:26.7]} 15. Qxd4+
{[%clk 0:02:37.1]} 15... f6 {[%clk 0:00:27.2]} 16. Ra1 {[%clk 0:02:21.2]} 16...
Qe6 {[%clk 0:00:25.9]} 17. Nd5 {[%clk 0:02:16.8]} 17... Qxg4 {[%clk 0:00:22.6]}
18. Be2 {[%clk 0:02:06.6]} 18... Qh4+ {[%clk 0:00:19.5]} 19. Kd2 {[%clk
0:02:02]} 19... Qg5+ {[%clk 0:00:16.8]} 20. Qe3 {[%clk 0:01:53.8]} 20... Qe5
{[%clk 0:00:14.8]} 21. h4 {[%clk 0:01:48.6]} 21... d6 {[%clk 0:00:11.6]} 22. h5
{[%clk 0:01:48.4]} 22... g5 {[%clk 0:00:07.8]} 23. h6+ {[%clk 0:01:47.8]} 23...
Kh8 {[%clk 0:00:07.4]} 24. Raf1 {[%clk 0:01:42.3]} 24... Be6 {[%clk 0:00:06.3]}
25. c3 {[%clk 0:01:29.6]} 25... Bxd5 {[%clk 0:00:05.6]} 26. exd5 {[%clk
0:01:29.1]} 26... Qxd5+ {[%clk 0:00:06.5]} 27. Qd4 {[%clk 0:01:27.8]} 27... Qa2+
{[%clk 0:00:05.3]} 28. Kd3 {[%clk 0:01:22.8]} 28... Rae8 {[%clk 0:00:02.4]} 29.
Rh2 {[%clk 0:01:15.3]} 29... Qa6+ {[%clk 0:00:02.1]} 30. c4 {[%clk 0:01:11]}
30... Qa3+ {[%clk 0:00:02.1]} 31. Qc3 {[%clk 0:01:11.1]} 1-0

[Event "*** Titled Tuesday Blitz"]
[Site "Chess.com"]
[Date "2021.03.09"]
[Round "4"]
[White "IsaacWiebe"]
[Black "Isajevsky_Anton"]
[Result "0-1"]
[WhiteElo "2282"]
[BlackElo "2465"]
[TimeControl "180+1"]
[EndTime "10:40:34 PST"]
[Termination "Isajevsky_Anton won by resignation"]

1. e4 {[%clk 0:03:00.9]} 1... c5 {[%clk 0:02:59.6]} 2. Nc3 {[%clk 0:02:59]} 2...
d6 {[%clk 0:02:59.1]} 3. g3 {[%clk 0:02:59.3]} 3... g6 {[%clk 0:02:57.6]} 4. Bg2
{[%clk 0:02:59.5]} 4... Bg7 {[%clk 0:02:57.6]} 5. Nge2 {[%clk 0:02:59.5]} 5...
Nc6 {[%clk 0:02:57.9]} 6. O-O {[%clk 0:02:58.9]} 6... e6 {[%clk 0:02:55.5]} 7.
d3 {[%clk 0:02:57.3]} 7... Nge7 {[%clk 0:02:55.1]} 8. Be3 {[%clk 0:02:56.9]}
8... Nd4 {[%clk 0:02:54.7]} 9. Qd2 {[%clk 0:02:55.2]} 9... O-O {[%clk
0:02:54.4]} 10. Nd1 {[%clk 0:02:51.1]} 10... Rb8 {[%clk 0:02:50.4]} 11. c3
{[%clk 0:02:50.6]} 11... Nxe2+ {[%clk 0:02:35]} 12. Qxe2 {[%clk 0:02:51.5]}
12... b5 {[%clk 0:02:35.2]} 13. f4 {[%clk 0:02:45.5]} 13... Qc7 {[%clk
0:02:21.9]} 14. Nf2 {[%clk 0:02:44.9]} 14... b4 {[%clk 0:02:11.1]} 15. d4 {[%clk
0:02:00.7]} 15... bxc3 {[%clk 0:01:57.8]} 16. bxc3 {[%clk 0:02:00.5]} 16... Bd7
{[%clk 0:01:43.2]} 17. Rfd1 {[%clk 0:01:53.9]} 17... Bb5 {[%clk 0:01:36.3]} 18.
Qd2 {[%clk 0:01:47.6]} 18... cxd4 {[%clk 0:01:11.9]} 19. cxd4 {[%clk 0:01:46.9]}
19... d5 {[%clk 0:01:11.7]} 20. e5 {[%clk 0:01:38.3]} 20... Nf5 {[%clk
0:01:10.4]} 21. g4 {[%clk 0:01:36.2]} 21... Nxe3 {[%clk 0:01:08.9]} 22. Qxe3
{[%clk 0:01:37.1]} 22... f6 {[%clk 0:01:07.7]} 23. exf6 {[%clk 0:01:34.1]} 23...
Rxf6 {[%clk 0:01:06.1]} 24. g5 {[%clk 0:01:34.4]} 24... Rxf4 {[%clk 0:01:04.9]}
25. Qxe6+ {[%clk 0:01:32.8]} 25... Kh8 {[%clk 0:01:04.7]} 26. Qxd5 {[%clk
0:01:26.4]} 26... Rxf2 {[%clk 0:00:37.2]} 27. Kxf2 {[%clk 0:01:22.5]} 27... Qxh2
{[%clk 0:00:37.3]} 28. Rh1 {[%clk 0:01:08]} 28... Rf8+ {[%clk 0:00:36.1]} 29.
Ke3 {[%clk 0:01:07.1]} 29... Qg3+ {[%clk 0:00:26.5]} 30. Bf3 {[%clk 0:01:07]}
30... Rxf3+ {[%clk 0:00:26.1]} 31. Qxf3 {[%clk 0:01:06.5]} 31... Bxd4+ {[%clk
0:00:25.9]} 32. Ke4 {[%clk 0:01:01.9]} 32... Bc6+ {[%clk 0:00:24.8]} 33. Kxd4
{[%clk 0:01:02.8]} 33... Bxf3 {[%clk 0:00:23.3]} 0-1

[Event "*** Titled Tuesday Blitz"]
[Site "Chess.com"]
[Date "2021.03.09"]
[Round "4"]
[White "grandcoach"]
[Black "InitiatingASC"]
[Result "1-0"]
[WhiteElo "2254"]
[BlackElo "2427"]
[TimeControl "180+1"]
[EndTime "10:40:34 PST"]
[Termination "grandcoach won by resignation"]

1. e4 {[%clk 0:03:00.9]} 1... c5 {[%clk 0:03:00.1]} 2. b4 {[%clk 0:03:00.1]}
2... e6 {[%clk 0:02:59.9]} 3. bxc5 {[%clk 0:02:58.7]} 3... Bxc5 {[%clk
0:03:00.1]} 4. d4 {[%clk 0:02:59.3]} 4... Be7 {[%clk 0:03:00]} 5. Bd3 {[%clk
0:02:58.3]} 5... d6 {[%clk 0:03:00.6]} 6. Ne2 {[%clk 0:02:56.9]} 6... a6 {[%clk
0:03:00.3]} 7. O-O {[%clk 0:02:54.7]} 7... b6 {[%clk 0:02:57.4]} 8. f4 {[%clk
0:02:49.6]} 8... Nf6 {[%clk 0:02:54.9]} 9. c4 {[%clk 0:02:36]} 9... Nbd7 {[%clk
0:02:54.3]} 10. Bb2 {[%clk 0:02:31.9]} 10... Bb7 {[%clk 0:02:42.3]} 11. Nd2
{[%clk 0:02:30.3]} 11... O-O {[%clk 0:02:42.2]} 12. Ng3 {[%clk 0:02:26.8]} 12...
e5 {[%clk 0:02:13.9]} 13. Nf5 {[%clk 0:02:12]} 13... exd4 {[%clk 0:02:07.5]} 14.
Bxd4 {[%clk 0:02:08.2]} 14... Nc5 {[%clk 0:02:07.4]} 15. Qf3 {[%clk 0:01:53.2]}
15... Nxd3 {[%clk 0:01:50.4]} 16. Qxd3 {[%clk 0:01:52]} 16... Re8 {[%clk
0:01:50.6]} 17. Qg3 {[%clk 0:01:48.7]} 17... g6 {[%clk 0:01:22.6]} 18. Nh6+
{[%clk 0:01:34.8]} 18... Kf8 {[%clk 0:01:17.3]} 19. f5 {[%clk 0:01:34.5]} 19...
Nxe4 {[%clk 0:00:18.5]} 20. fxg6 {[%clk 0:01:26.5]} 20... Bf6 {[%clk 0:00:18.8]}
21. Rxf6 {[%clk 0:01:16.7]} 21... Qxf6 {[%clk 0:00:16.4]} 22. g7+ {[%clk
0:01:11.4]} 22... Ke7 {[%clk 0:00:11.7]} 23. Bxf6+ {[%clk 0:01:10]} 23... Kxf6
{[%clk 0:00:12]} 24. Rf1+ {[%clk 0:01:05.4]} 24... Ke6 {[%clk 0:00:11.4]} 25.
Nxe4 {[%clk 0:01:00.1]} 25... Bxe4 {[%clk 0:00:12.3]} 26. g8=Q {[%clk
0:00:57.5]} 26... Rxg8 {[%clk 0:00:11.8]} 27. Nxg8 {[%clk 0:00:56.6]} 27... Bg6
{[%clk 0:00:12.5]} 28. Rf6+ {[%clk 0:00:52.2]} 1-0

[Event "*** Titled Tuesday Blitz"]
[Site "Chess.com"]
[Date "2021.03.09"]
[Round "4"]
[White "GelmanAlexander"]
[Black "Er_is_geen_hoop_meer"]
[Result "1-0"]
[WhiteElo "2588"]
[BlackElo "2400"]
[TimeControl "180+1"]
[EndTime "10:40:36 PST"]
[Termination "GelmanAlexander won by resignation"]

1. d4 {[%clk 0:03:00.9]} 1... Nf6 {[%clk 0:02:59.3]} 2. Nc3 {[%clk 0:02:59.4]}
2... d5 {[%clk 0:02:58.8]} 3. Bf4 {[%clk 0:02:59]} 3... c5 {[%clk 0:02:55.1]} 4.
e3 {[%clk 0:02:59.2]} 4... cxd4 {[%clk 0:02:54.1]} 5. exd4 {[%clk 0:02:59.4]}
5... a6 {[%clk 0:02:53.9]} 6. Nf3 {[%clk 0:02:59.2]} 6... Nc6 {[%clk 0:02:53.5]}
7. Ne5 {[%clk 0:02:59.6]} 7... Bf5 {[%clk 0:02:30.8]} 8. g4 {[%clk 0:02:59.1]}
8... Bg6 {[%clk 0:02:26]} 9. h4 {[%clk 0:02:59]} 9... h5 {[%clk 0:01:53]} 10.
Nxg6 {[%clk 0:02:58]} 10... fxg6 {[%clk 0:01:53]} 11. g5 {[%clk 0:02:56.8]}
11... Ne4 {[%clk 0:01:50.7]} 12. Nxe4 {[%clk 0:02:54.8]} 12... dxe4 {[%clk
0:01:50.3]} 13. d5 {[%clk 0:02:29.1]} 13... e5 {[%clk 0:01:39.4]} 14. dxc6
{[%clk 0:02:17.4]} 14... exf4 {[%clk 0:01:38.1]} 15. cxb7 {[%clk 0:02:15.9]}
15... Qa5+ {[%clk 0:01:34.4]} 16. c3 {[%clk 0:01:45.7]} 16... Rb8 {[%clk
0:01:29.1]} 17. Qb3 {[%clk 0:01:29.6]} 17... Bc5 {[%clk 0:00:24.4]} 18. Qe6+
{[%clk 0:01:17]} 18... Kf8 {[%clk 0:00:24]} 19. O-O-O {[%clk 0:00:49.5]} 19...
Rxb7 {[%clk 0:00:16.4]} 20. Qc8+ {[%clk 0:00:40.9]} 1-0

[Event "*** Titled Tuesday Blitz"]
[Site "Chess.com"]
[Date "2021.03.09"]
[Round "4"]
[White "Pilopa"]
[Black "tk22h"]
[Result "1-0"]
[WhiteElo "2546"]
[BlackElo "2339"]
[TimeControl "180+1"]
[EndTime "10:40:36 PST"]
[Termination "Pilopa won by resignation"]

1. e4 {[%clk 0:03:00.9]} 1... e5 {[%clk 0:02:59]} 2. Nf3 {[%clk 0:02:59.9]} 2...
Nc6 {[%clk 0:02:58.8]} 3. Bc4 {[%clk 0:03:00.4]} 3... Nf6 {[%clk 0:02:58.1]} 4.
d3 {[%clk 0:03:00.6]} 4... Be7 {[%clk 0:02:58.1]} 5. O-O {[%clk 0:02:59.9]} 5...
O-O {[%clk 0:02:57.2]} 6. a4 {[%clk 0:03:00]} 6... d5 {[%clk 0:02:54.6]} 7. exd5
{[%clk 0:02:59.3]} 7... Nxd5 {[%clk 0:02:55.1]} 8. h3 {[%clk 0:02:59.7]} 8... a6
{[%clk 0:02:54.1]} 9. Re1 {[%clk 0:02:59.5]} 9... Nb6 {[%clk 0:02:54.2]} 10. Ba2
{[%clk 0:02:58.6]} 10... Bd6 {[%clk 0:02:48.5]} 11. Bg5 {[%clk 0:02:51.1]} 11...
Qd7 {[%clk 0:02:47.3]} 12. Nc3 {[%clk 0:02:48.4]} 12... h6 {[%clk 0:02:46.1]}
13. Be3 {[%clk 0:02:46.9]} 13... Qf5 {[%clk 0:02:42.9]} 14. Nd5 {[%clk 0:02:15]}
14... Nxd5 {[%clk 0:02:41.5]} 15. Bxd5 {[%clk 0:02:15.9]} 15... Bd7 {[%clk
0:02:41.5]} 16. c3 {[%clk 0:02:13.8]} 16... Rad8 {[%clk 0:02:39.7]} 17. b4
{[%clk 0:02:11.4]} 17... b6 {[%clk 0:02:27.7]} 18. b5 {[%clk 0:02:06.6]} 18...
axb5 {[%clk 0:02:27.1]} 19. axb5 {[%clk 0:02:07.5]} 19... Ne7 {[%clk 0:02:27.2]}
20. Be4 {[%clk 0:02:04]} 20... Qf6 {[%clk 0:02:26.7]} 21. c4 {[%clk 0:01:56.3]}
21... Ng6 {[%clk 0:02:20.6]} 22. Nd2 {[%clk 0:01:47.7]} 22... Nf4 {[%clk
0:02:18]} 23. Qf3 {[%clk 0:01:45]} 23... Qg5 {[%clk 0:02:08.5]} 24. g3 {[%clk
0:01:23.5]} 24... Nxh3+ {[%clk 0:02:04.6]} 25. Kg2 {[%clk 0:01:23.1]} 25... Nf4+
{[%clk 0:01:55.6]} 26. Kh2 {[%clk 0:01:07.1]} 26... Qh5+ {[%clk 0:01:54.1]} 27.
Qxh5 {[%clk 0:01:05.4]} 27... Nxh5 {[%clk 0:01:54.2]} 28. Bc6 {[%clk 0:01:02.4]}
28... f5 {[%clk 0:01:46.3]} 29. Nb3 {[%clk 0:00:53]} 29... f4 {[%clk 0:01:44.4]}
30. Bd2 {[%clk 0:00:52.9]} 30... fxg3+ {[%clk 0:01:43.4]} 31. fxg3 {[%clk
0:00:52.4]} 31... Rf2+ {[%clk 0:01:43.4]} 32. Kg1 {[%clk 0:00:52.6]} 32... Rxd2
{[%clk 0:01:43.6]} 33. Nxd2 {[%clk 0:00:50.3]} 33... Bc5+ {[%clk 0:01:40]} 34.
Kg2 {[%clk 0:00:42.4]} 34... Bxc6+ {[%clk 0:01:36.3]} 35. bxc6 {[%clk
0:00:43.3]} 35... Rxd3 {[%clk 0:01:36.3]} 36. Ne4 {[%clk 0:00:44.2]} 36... Bd4
{[%clk 0:01:32.9]} 37. Ra7 {[%clk 0:00:43.3]} 37... b5 {[%clk 0:01:12]} 38. Rxc7
{[%clk 0:00:38.4]} 38... bxc4 {[%clk 0:01:11.8]} 39. Rd7 {[%clk 0:00:33.6]}
39... Nf6 {[%clk 0:01:06]} 40. Nxf6+ {[%clk 0:00:31.7]} 40... gxf6 {[%clk
0:01:06.2]} 41. c7 {[%clk 0:00:29.5]} 1-0

[Event "*** Titled Tuesday Blitz"]
[Site "Chess.com"]
[Date "2021.03.09"]
[Round "4"]
[White "Murad_Ibrahimli"]
[Black "Margency"]
[Result "0-1"]
[WhiteElo "2867"]
[BlackElo "2712"]
[TimeControl "180+1"]
[EndTime "10:40:37 PST"]
[Termination "Margency won by resignation"]

1. d4 {[%clk 0:03:00.9]} 1... Nf6 {[%clk 0:03:00]} 2. c4 {[%clk 0:03:00]} 2...
g6 {[%clk 0:03:00.3]} 3. Nc3 {[%clk 0:02:59.5]} 3... d5 {[%clk 0:03:00.4]} 4.
Nf3 {[%clk 0:02:54.8]} 4... Bg7 {[%clk 0:03:00.3]} 5. cxd5 {[%clk 0:02:54]} 5...
Nxd5 {[%clk 0:03:00.5]} 6. Bd2 {[%clk 0:02:54.6]} 6... Nb6 {[%clk 0:03:00.4]} 7.
Bg5 {[%clk 0:02:53.8]} 7... c5 {[%clk 0:02:54.8]} 8. dxc5 {[%clk 0:02:37.4]}
8... Bxc3+ {[%clk 0:02:54.2]} 9. bxc3 {[%clk 0:02:37.6]} 9... Qxd1+ {[%clk
0:02:54.7]} 10. Rxd1 {[%clk 0:02:38.1]} 10... Na4 {[%clk 0:02:54.5]} 11. h4
{[%clk 0:02:25.5]} 11... f6 {[%clk 0:02:33.5]} 12. Be3 {[%clk 0:02:17.8]} 12...
Nd7 {[%clk 0:02:25.2]} 13. c6 {[%clk 0:02:13.9]} 13... bxc6 {[%clk 0:02:24.3]}
14. Nd4 {[%clk 0:02:14.4]} 14... Ne5 {[%clk 0:02:15.5]} 15. Bf4 {[%clk
0:01:08.8]} 15... Nxc3 {[%clk 0:01:49.5]} 16. Rd2 {[%clk 0:00:59.7]} 16... Rb8
{[%clk 0:01:37.8]} 17. f3 {[%clk 0:00:58.5]} 17... Rb1+ {[%clk 0:01:35.1]} 18.
Kf2 {[%clk 0:00:57.6]} 18... Nc4 {[%clk 0:01:15.8]} 19. Rd3 {[%clk 0:00:22.6]}
19... Nd1+ {[%clk 0:01:14.9]} 20. Kg3 {[%clk 0:00:22.6]} 20... e5 {[%clk
0:01:12]} 21. Bh6 {[%clk 0:00:22]} 21... exd4 {[%clk 0:01:06.9]} 22. Rxd4 {[%clk
0:00:22.9]} 22... Be6 {[%clk 0:01:02]} 23. e4 {[%clk 0:00:22.2]} 23... Nb6
{[%clk 0:00:45.8]} 24. Be2 {[%clk 0:00:18.6]} 24... Nc3 {[%clk 0:00:45.7]} 0-1

[Event "*** Titled Tuesday Blitz"]
[Site "Chess.com"]
[Date "2021.03.09"]
[Round "4"]
[White "Klavdia_Nik"]
[Black "Matols"]
[Result "0-1"]
[WhiteElo "2052"]
[BlackElo "2282"]
[TimeControl "180+1"]
[EndTime "10:40:37 PST"]
[Termination "Matols won by resignation"]

1. Nf3 {[%clk 0:02:39.4]} 1... Nf6 {[%clk 0:02:57.4]} 2. c4 {[%clk 0:02:38]}
2... e6 {[%clk 0:02:55.8]} 3. b3 {[%clk 0:02:37.1]} 3... d5 {[%clk 0:02:54.8]}
4. Bb2 {[%clk 0:01:49.5]} 4... Be7 {[%clk 0:02:53.6]} 5. g3 {[%clk 0:01:46.2]}
5... O-O {[%clk 0:02:52.9]} 6. Bg2 {[%clk 0:01:46.6]} 6... c5 {[%clk 0:02:51.7]}
7. O-O {[%clk 0:01:46.4]} 7... Nc6 {[%clk 0:02:50.7]} 8. d3 {[%clk 0:01:46.3]}
8... b6 {[%clk 0:02:48.1]} 9. cxd5 {[%clk 0:01:41]} 9... Nxd5 {[%clk 0:02:42.2]}
10. e4 {[%clk 0:01:35.9]} 10... Nf6 {[%clk 0:02:32.4]} 11. e5 {[%clk 0:01:32.7]}
11... Nd5 {[%clk 0:02:31]} 12. d4 {[%clk 0:01:32.9]} 12... Bb7 {[%clk
0:02:13.1]} 13. Nc3 {[%clk 0:01:16.1]} 13... Nxc3 {[%clk 0:01:52.8]} 14. Bxc3
{[%clk 0:01:15.2]} 14... Rc8 {[%clk 0:01:25.2]} 15. Qd2 {[%clk 0:00:56.4]} 15...
Nxd4 {[%clk 0:01:07.2]} 16. Nxd4 {[%clk 0:00:20.8]} 16... Bxg2 {[%clk
0:01:06.4]} 17. Kxg2 {[%clk 0:00:20.8]} 17... cxd4 {[%clk 0:01:06]} 18. Qxd4
{[%clk 0:00:19.6]} 18... Bc5 {[%clk 0:00:57.7]} 19. Qxd8 {[%clk 0:00:13.4]}
19... Rfxd8 {[%clk 0:00:58.1]} 20. Rad1 {[%clk 0:00:08.2]} 20... Kf8 {[%clk
0:00:54.6]} 21. Bb2 {[%clk 0:00:07.4]} 21... Ke7 {[%clk 0:00:52.5]} 22. Rd2
{[%clk 0:00:05.2]} 22... Rxd2 {[%clk 0:00:51.1]} 0-1